[Event "*** Titled Tuesday Blitz"]
[Site "Chess.com"]
[Date "2020.05.12"]
[Round "6"]
[White "BabyBoss31"]
[Black "Aradej"]
[Result "1/2-1/2"]
[WhiteElo "2317"]
[BlackElo "2494"]
[TimeControl "180+1"]
[EndTime "11:04:49 PDT"]
[Termination "Game drawn by repetition"]

1. d4 {[%clk 0:03:00.9]} 1... Nf6 {[%clk 0:02:59.1]} 2. c4 {[%clk 0:03:00]} 2...
c5 {[%clk 0:02:57.8]} 3. d5 {[%clk 0:02:56.6]} 3... g6 {[%clk 0:02:57.9]} 4. Nc3
{[%clk 0:02:48.4]} 4... Bg7 {[%clk 0:02:58.4]} 5. e4 {[%clk 0:02:46.3]} 5... d6
{[%clk 0:02:58.9]} 6. Nf3 {[%clk 0:02:44.2]} 6... O-O {[%clk 0:02:59.2]} 7. Be2
{[%clk 0:02:41.3]} 7... e6 {[%clk 0:02:59.6]} 8. O-O {[%clk 0:02:40.2]} 8...
exd5 {[%clk 0:02:58.6]} 9. exd5 {[%clk 0:02:35.9]} 9... Re8 {[%clk 0:02:57]} 10.
h3 {[%clk 0:02:33]} 10... a6 {[%clk 0:02:55.7]} 11. Bd3 {[%clk 0:02:26]} 11...
Nh5 {[%clk 0:02:51.7]} 12. Bg5 {[%clk 0:02:17.2]} 12... Bf6 {[%clk 0:02:48]} 13.
Bd2 {[%clk 0:02:12.2]} 13... Nd7 {[%clk 0:02:46.8]} 14. Qc2 {[%clk 0:02:11.4]}
14... Ne5 {[%clk 0:02:45.7]} 15. Nxe5 {[%clk 0:02:09.5]} 15... Bxe5 {[%clk
0:02:45.9]} 16. Rae1 {[%clk 0:02:08.8]} 16... Bd7 {[%clk 0:02:45.6]} 17. Ne2
{[%clk 0:01:55]} 17... b5 {[%clk 0:02:38.8]} 18. b3 {[%clk 0:01:53.4]} 18... b4
{[%clk 0:02:36.4]} 19. g4 {[%clk 0:01:33.5]} 19... Qh4 {[%clk 0:02:21.9]} 20.
gxh5 {[%clk 0:00:56.8]} 20... Qxh3 {[%clk 0:02:21.4]} 21. f4 {[%clk 0:00:56.8]}
21... Qg4+ {[%clk 0:02:19.5]} 22. Kh1 {[%clk 0:00:49.8]} 22... Qxh5+ {[%clk
0:02:19.1]} 23. Kg1 {[%clk 0:00:50.4]} 23... Qg4+ {[%clk 0:02:18.4]} 24. Kh1
{[%clk 0:00:49]} 24... Qh3+ {[%clk 0:02:16.9]} 25. Kg1 {[%clk 0:00:48.5]} 25...
Qg4+ {[%clk 0:02:07.2]} 26. Kh1 {[%clk 0:00:47.3]} 26... Qh4+ {[%clk 0:02:04]}
27. Kg1 {[%clk 0:00:47.1]} 27... Bg7 {[%clk 0:01:53.8]} 28. Be4 {[%clk
0:00:45.1]} 28... Bg4 {[%clk 0:01:44.4]} 29. Qd3 {[%clk 0:00:36.4]} 29... Bxe2
{[%clk 0:01:36.6]} 30. Rxe2 {[%clk 0:00:34.3]} 30... Bd4+ {[%clk 0:01:32.7]} 31.
Kg2 {[%clk 0:00:25.9]} 31... Qg4+ {[%clk 0:01:30.2]} 32. Kh1 {[%clk 0:00:20]}
32... f5 {[%clk 0:01:28.4]} 33. Bf3 {[%clk 0:00:20.2]} 33... Qh3+ {[%clk
0:01:27.8]} 34. Rh2 {[%clk 0:00:19.9]} 34... Qg3 {[%clk 0:01:25]} 35. Rg2 {[%clk
0:00:20.4]} 35... Qh3+ {[%clk 0:01:24.4]} 36. Rh2 {[%clk 0:00:21]} 36... Qg3
{[%clk 0:01:24.7]} 37. Rg2 {[%clk 0:00:21.6]} 37... Qh3+ {[%clk 0:01:22.2]} 38.
Rh2 {[%clk 0:00:22.1]} 1/2-1/2

[Event "*** Titled Tuesday Blitz"]
[Site "Chess.com"]
[Date "2020.05.12"]
[Round "6"]
[White "Anna_ChessMate"]
[Black "GukeshDommaraju"]
[Result "0-1"]
[WhiteElo "2496"]
[BlackElo "2734"]
[TimeControl "180+1"]
[EndTime "11:04:53 PDT"]
[Termination "GukeshDommaraju won by resignation"]

1. d4 {[%clk 0:03:00.9]} 1... Nf6 {[%clk 0:02:59.7]} 2. c4 {[%clk 0:03:01]} 2...
e6 {[%clk 0:02:59.9]} 3. Nf3 {[%clk 0:03:01.3]} 3... d5 {[%clk 0:03:00]} 4. Nc3
{[%clk 0:03:01.4]} 4... Bb4 {[%clk 0:02:59.7]} 5. Bg5 {[%clk 0:03:01.6]} 5... h6
{[%clk 0:02:53.8]} 6. Bxf6 {[%clk 0:03:01.2]} 6... Qxf6 {[%clk 0:02:54]} 7. Qa4+
{[%clk 0:03:01.3]} 7... Nc6 {[%clk 0:02:54.1]} 8. e3 {[%clk 0:03:01.9]} 8... O-O
{[%clk 0:02:50.6]} 9. Be2 {[%clk 0:03:02.5]} 9... a6 {[%clk 0:02:35.9]} 10. cxd5
{[%clk 0:02:58.9]} 10... exd5 {[%clk 0:02:35.3]} 11. O-O {[%clk 0:02:58.9]}
11... Qd6 {[%clk 0:02:29.4]} 12. Rac1 {[%clk 0:02:55.2]} 12... Bd7 {[%clk
0:02:12.8]} 13. Qc2 {[%clk 0:02:46.3]} 13... Ne7 {[%clk 0:02:01.1]} 14. Nb1
{[%clk 0:02:39.5]} 14... c6 {[%clk 0:01:57.2]} 15. a3 {[%clk 0:02:39.6]} 15...
Ba5 {[%clk 0:01:57]} 16. b4 {[%clk 0:02:40.1]} 16... Bc7 {[%clk 0:01:56.8]} 17.
Ne5 {[%clk 0:02:40.5]} 17... f6 {[%clk 0:01:54]} 18. Nf3 {[%clk 0:02:34.8]}
18... g5 {[%clk 0:01:48]} 19. g3 {[%clk 0:02:28.9]} 19... Kg7 {[%clk 0:01:45.2]}
20. Nbd2 {[%clk 0:02:24.1]} 20... Bh3 {[%clk 0:01:39.4]} 21. Rfe1 {[%clk
0:02:21.5]} 21... h5 {[%clk 0:01:39.2]} 22. e4 {[%clk 0:02:16.8]} 22... Ng6
{[%clk 0:01:18]} 23. exd5 {[%clk 0:02:13.7]} 23... Qxd5 {[%clk 0:01:17.2]} 24.
Bc4 {[%clk 0:02:11.2]} 24... Qd7 {[%clk 0:01:11.9]} 25. Ne4 {[%clk 0:02:07.9]}
25... Rae8 {[%clk 0:01:06.4]} 26. Nc5 {[%clk 0:02:07.3]} 26... Qc8 {[%clk
0:01:05.8]} 27. Bd3 {[%clk 0:02:04.4]} 27... Nf4 {[%clk 0:00:59.1]} 28. Bf1
{[%clk 0:01:37.2]} 28... Bxf1 {[%clk 0:00:58.6]} 29. Rxf1 {[%clk 0:01:26]} 29...
Qh3 {[%clk 0:00:53.8]} 30. gxf4 {[%clk 0:01:25.3]} 30... Qg4+ {[%clk 0:00:53.3]}
31. Kh1 {[%clk 0:01:25.9]} 31... Qxf3+ {[%clk 0:00:53.4]} 32. Kg1 {[%clk
0:01:26.5]} 32... Bxf4 {[%clk 0:00:52.1]} 33. Rce1 {[%clk 0:01:19.7]} 33... Qg4+
{[%clk 0:00:43.9]} 34. Kh1 {[%clk 0:01:19.5]} 34... Qh3 {[%clk 0:00:43.7]} 35.
f3 {[%clk 0:01:15.3]} 35... Rxe1 {[%clk 0:00:41.9]} 36. Rxe1 {[%clk 0:01:16.2]}
36... Qxf3+ {[%clk 0:00:42.1]} 37. Kg1 {[%clk 0:01:16.7]} 37... Be3+ {[%clk
0:00:41.9]} 0-1

[Event "*** Titled Tuesday Blitz"]
[Site "Chess.com"]
[Date "2020.05.12"]
[Round "6"]
[White "Karacsonyi_Gellert"]
[Black "northridgehawk"]
[Result "1-0"]
[WhiteElo "2489"]
[BlackElo "2257"]
[TimeControl "180+1"]
[EndTime "11:04:54 PDT"]
[Termination "Karacsonyi_Gellert won by checkmate"]

1. e4 {[%clk 0:03:00.9]} 1... e5 {[%clk 0:02:59.4]} 2. Nf3 {[%clk 0:03:00.8]}
2... Nc6 {[%clk 0:02:56.5]} 3. Bb5 {[%clk 0:03:01.2]} 3... a6 {[%clk 0:02:56.2]}
4. Bxc6 {[%clk 0:03:01.5]} 4... dxc6 {[%clk 0:02:56]} 5. O-O {[%clk 0:03:02.4]}
5... Bg4 {[%clk 0:02:55.7]} 6. h3 {[%clk 0:03:02.3]} 6... h5 {[%clk 0:02:53.3]}
7. d3 {[%clk 0:03:02.5]} 7... Qf6 {[%clk 0:02:50.4]} 8. Nbd2 {[%clk 0:03:02.9]}
8... g5 {[%clk 0:02:49.2]} 9. Nc4 {[%clk 0:03:02.4]} 9... Bxf3 {[%clk
0:02:48.5]} 10. Qxf3 {[%clk 0:03:03.3]} 10... Qxf3 {[%clk 0:02:48.8]} 11. gxf3
{[%clk 0:03:04.2]} 11... f6 {[%clk 0:02:49.1]} 12. h4 {[%clk 0:03:04.6]} 12...
gxh4 {[%clk 0:02:46.7]} 13. Kh2 {[%clk 0:03:05.1]} 13... O-O-O {[%clk
0:02:39.8]} 14. Ne3 {[%clk 0:03:04.7]} 14... Ne7 {[%clk 0:02:38.1]} 15. Rg1
{[%clk 0:03:00.1]} 15... Bh6 {[%clk 0:02:36.3]} 16. Nf5 {[%clk 0:02:58.7]} 16...
Nxf5 {[%clk 0:02:34.2]} 17. exf5 {[%clk 0:02:59.2]} 17... Bf4+ {[%clk 0:02:11]}
18. Bxf4 {[%clk 0:02:54.2]} 18... exf4 {[%clk 0:02:11.9]} 19. Rae1 {[%clk
0:02:50.7]} 19... Rd5 {[%clk 0:02:10.6]} 20. Rg7 {[%clk 0:02:43.5]} 20... Kb8
{[%clk 0:02:04]} 21. Ree7 {[%clk 0:02:42]} 21... Rc8 {[%clk 0:02:03]} 22. Kh3
{[%clk 0:02:41.7]} 22... Rxf5 {[%clk 0:02:01.7]} 23. Kxh4 {[%clk 0:02:42]} 23...
a5 {[%clk 0:01:42.8]} 24. Rh7 {[%clk 0:02:34.1]} 24... Rc5 {[%clk 0:01:30.6]}
25. c3 {[%clk 0:02:32.6]} 25... Rb5 {[%clk 0:01:29.8]} 26. b3 {[%clk 0:02:30.5]}
26... a4 {[%clk 0:01:28.4]} 27. Rxh5 {[%clk 0:02:24.6]} 27... f5 {[%clk
0:01:14.7]} 28. b4 {[%clk 0:02:21.8]} 28... Rg8 {[%clk 0:01:05.4]} 29. a3 {[%clk
0:02:19.5]} 29... Rd5 {[%clk 0:01:01.8]} 30. d4 {[%clk 0:02:16.4]} 30... Rg1
{[%clk 0:00:55]} 31. Re5 {[%clk 0:01:58.2]} 31... Rd8 {[%clk 0:00:46.8]} 32.
Rexf5 {[%clk 0:01:57.3]} 32... Rdg8 {[%clk 0:00:37.3]} 33. Rfg5 {[%clk
0:01:57.6]} 33... Rh1+ {[%clk 0:00:35.4]} 34. Kg4 {[%clk 0:01:57.8]} 34... Rg1+
{[%clk 0:00:26.4]} 35. Kxf4 {[%clk 0:01:55]} 35... Rf8+ {[%clk 0:00:26.3]} 36.
Rf5 {[%clk 0:01:54.7]} 36... Re8 {[%clk 0:00:25]} 37. Re5 {[%clk 0:01:54.1]}
37... Rf8+ {[%clk 0:00:23.8]} 38. Rhf5 {[%clk 0:01:54.6]} 38... Rh8 {[%clk
0:00:24.2]} 39. Rf7 {[%clk 0:01:47.2]} 39... Rh4+ {[%clk 0:00:23.4]} 40. Ke3
{[%clk 0:01:45.3]} 40... Rgh1 {[%clk 0:00:18.8]} 41. c4 {[%clk 0:01:37.3]} 41...
Ra1 {[%clk 0:00:17.3]} 42. Rf8+ {[%clk 0:01:37.4]} 42... Ka7 {[%clk 0:00:16.1]}
43. Ra5+ {[%clk 0:01:38.3]} 43... Kb6 {[%clk 0:00:14.7]} 44. c5# {[%clk
0:01:39.2]} 1-0

[Event "*** Titled Tuesday Blitz"]
[Site "Chess.com"]
[Date "2020.05.12"]
[Round "6"]
[White "Barys1974"]
[Black "CrushingKings"]
[Result "0-1"]
[WhiteElo "2623"]
[BlackElo "2488"]
[TimeControl "180+1"]
[EndTime "11:04:57 PDT"]
[Termination "CrushingKings won by resignation"]

1. e4 {[%clk 0:03:00.9]} 1... c5 {[%clk 0:02:58.2]} 2. Nf3 {[%clk 0:03:00.2]}
2... e6 {[%clk 0:02:58.5]} 3. c4 {[%clk 0:02:58.6]} 3... Nc6 {[%clk 0:02:55.7]}
4. Be2 {[%clk 0:02:58.7]} 4... d5 {[%clk 0:02:35.1]} 5. exd5 {[%clk 0:02:54.9]}
5... exd5 {[%clk 0:02:35.9]} 6. cxd5 {[%clk 0:02:55.1]} 6... Qxd5 {[%clk
0:02:34.3]} 7. Nc3 {[%clk 0:02:55]} 7... Qd8 {[%clk 0:02:30.2]} 8. O-O {[%clk
0:02:51.9]} 8... Nf6 {[%clk 0:02:30]} 9. d4 {[%clk 0:02:52.2]} 9... cxd4 {[%clk
0:02:26.6]} 10. Nb5 {[%clk 0:02:52.3]} 10... Bc5 {[%clk 0:02:26.2]} 11. Bf4
{[%clk 0:02:38.3]} 11... O-O {[%clk 0:02:17.4]} 12. Rc1 {[%clk 0:02:37.2]} 12...
Bb6 {[%clk 0:02:03.5]} 13. Ne5 {[%clk 0:02:34.5]} 13... Nd5 {[%clk 0:01:57.7]}
14. Bg3 {[%clk 0:02:30.2]} 14... Qf6 {[%clk 0:01:20.8]} 15. Nc4 {[%clk
0:02:11.4]} 15... Bf5 {[%clk 0:01:12.5]} 16. Bf3 {[%clk 0:02:04.9]} 16... Ndb4
{[%clk 0:01:09.8]} 17. a3 {[%clk 0:01:32.8]} 17... Nd3 {[%clk 0:01:04.9]} 18.
Rc2 {[%clk 0:01:32.8]} 18... Nde5 {[%clk 0:00:47.6]} 19. Bxe5 {[%clk 0:01:09.9]}
19... Nxe5 {[%clk 0:00:48.5]} 20. Nxe5 {[%clk 0:00:58.9]} 20... Qxe5 {[%clk
0:00:49.4]} 21. Nxd4 {[%clk 0:00:38.5]} 21... Qxd4 {[%clk 0:00:38.2]} 0-1

[Event "*** Titled Tuesday Blitz"]
[Site "Chess.com"]
[Date "2020.05.12"]
[Round "6"]
[White "Juanovic"]
[Black "Mili_Brizzi"]
[Result "0-1"]
[WhiteElo "2188"]
[BlackElo "2463"]
[TimeControl "180+1"]
[EndTime "11:05:02 PDT"]
[Termination "Mili_Brizzi won by resignation"]

1. e4 {[%clk 0:03:00.9]} 1... e5 {[%clk 0:02:59.7]} 2. Nf3 {[%clk 0:03:00.4]}
2... Nc6 {[%clk 0:03:00]} 3. Bb5 {[%clk 0:02:59.8]} 3... a6 {[%clk 0:03:00.3]}
4. Bxc6 {[%clk 0:02:59.6]} 4... dxc6 {[%clk 0:03:00.5]} 5. O-O {[%clk
0:03:00.2]} 5... Bg4 {[%clk 0:03:00.5]} 6. h3 {[%clk 0:03:00]} 6... h5 {[%clk
0:03:00.7]} 7. d3 {[%clk 0:03:00.6]} 7... Qf6 {[%clk 0:03:00.4]} 8. Nbd2 {[%clk
0:03:00.2]} 8... Ne7 {[%clk 0:02:26.3]} 9. Qe2 {[%clk 0:02:58.8]} 9... Ng6
{[%clk 0:02:21.9]} 10. Qe3 {[%clk 0:02:57.6]} 10... Nf4 {[%clk 0:02:16.4]} 11.
Nc4 {[%clk 0:02:50.5]} 11... Nxh3+ {[%clk 0:01:58.9]} 12. gxh3 {[%clk
0:02:45.4]} 12... Bxf3 {[%clk 0:01:55.7]} 13. Qg5 {[%clk 0:02:42.3]} 13... Qxg5+
{[%clk 0:01:50.6]} 14. Bxg5 {[%clk 0:02:41.8]} 14... f6 {[%clk 0:01:50.5]} 15.
Be3 {[%clk 0:02:41.5]} 15... h4 {[%clk 0:01:46]} 16. Nd2 {[%clk 0:02:40.2]}
16... Bh5 {[%clk 0:01:42.6]} 17. f4 {[%clk 0:02:40.2]} 17... exf4 {[%clk
0:01:36.8]} 18. Bxf4 {[%clk 0:02:38.8]} 18... O-O-O {[%clk 0:01:34.8]} 19. Nb3
{[%clk 0:02:20.2]} 19... Bf7 {[%clk 0:01:19]} 20. Rae1 {[%clk 0:01:56.4]} 20...
Be6 {[%clk 0:01:13]} 21. Kh2 {[%clk 0:01:54.7]} 21... Rh5 {[%clk 0:01:08.1]} 22.
Re3 {[%clk 0:01:25.2]} 22... g5 {[%clk 0:00:58.4]} 23. Ref3 {[%clk 0:01:22]}
23... gxf4 {[%clk 0:00:57.8]} 24. Nd2 {[%clk 0:01:14.3]} 24... Bd6 {[%clk
0:00:57.8]} 25. c4 {[%clk 0:01:12.4]} 25... Rg8 {[%clk 0:00:56.5]} 26. a3 {[%clk
0:01:09.8]} 26... Rg3 {[%clk 0:00:56.2]} 27. b4 {[%clk 0:01:09.7]} 27... Rhg5
{[%clk 0:00:56.1]} 28. R1f2 {[%clk 0:01:08.9]} 28... Bxh3 {[%clk 0:00:50.8]} 29.
d4 {[%clk 0:01:05.5]} 29... Bg4 {[%clk 0:00:49.6]} 30. c5 {[%clk 0:01:02]} 30...
Bxf3 {[%clk 0:00:42.9]} 31. Nxf3 {[%clk 0:01:02.1]} 31... Be7 {[%clk 0:00:39.3]}
32. Nxg5 {[%clk 0:01:01.7]} 32... fxg5 {[%clk 0:00:39.5]} 33. d5 {[%clk
0:01:00.8]} 33... Bf6 {[%clk 0:00:37.2]} 34. dxc6 {[%clk 0:01:00.4]} 34... bxc6
{[%clk 0:00:36.7]} 35. e5 {[%clk 0:00:56.2]} 35... Bxe5 {[%clk 0:00:36.5]} 36.
Re2 {[%clk 0:00:56.1]} 36... Re3 {[%clk 0:00:36.7]} 37. Rd2 {[%clk 0:00:55.8]}
37... f3+ {[%clk 0:00:36.7]} 0-1

[Event "*** Titled Tuesday Blitz"]
[Site "Chess.com"]
[Date "2020.05.12"]
[Round "6"]
[White "Vaathi_Coming"]
[Black "ElGasanov"]
[Result "1-0"]
[WhiteElo "2872"]
[BlackElo "2738"]
[TimeControl "180+1"]
[EndTime "11:05:07 PDT"]
[Termination "Vaathi_Coming won by resignation"]

1. d4 {[%clk 0:03:00.9]} 1... Nf6 {[%clk 0:02:58.5]} 2. Nf3 {[%clk 0:03:01.4]}
2... b6 {[%clk 0:02:57.4]} 3. c4 {[%clk 0:03:01.1]} 3... Bb7 {[%clk 0:02:57]} 4.
Nc3 {[%clk 0:02:55.1]} 4... e6 {[%clk 0:02:56.8]} 5. a3 {[%clk 0:02:53.5]} 5...
g6 {[%clk 0:02:56]} 6. Bg5 {[%clk 0:02:50.6]} 6... Bg7 {[%clk 0:02:53.6]} 7. e3
{[%clk 0:02:46.5]} 7... h6 {[%clk 0:02:51.6]} 8. Bh4 {[%clk 0:02:46.4]} 8... O-O
{[%clk 0:02:50.4]} 9. Bd3 {[%clk 0:02:45.8]} 9... d5 {[%clk 0:02:48.2]} 10. cxd5
{[%clk 0:02:34.1]} 10... exd5 {[%clk 0:02:47.8]} 11. O-O {[%clk 0:02:34.7]}
11... Nbd7 {[%clk 0:02:47.3]} 12. Ne5 {[%clk 0:02:34.9]} 12... c5 {[%clk
0:02:33.8]} 13. f4 {[%clk 0:02:34.3]} 13... a6 {[%clk 0:02:24.3]} 14. Na4 {[%clk
0:02:19.8]} 14... Qc7 {[%clk 0:02:08]} 15. Rc1 {[%clk 0:02:06.7]} 15... c4
{[%clk 0:02:05.8]} 16. Bb1 {[%clk 0:01:59.2]} 16... b5 {[%clk 0:02:05.7]} 17.
Nc3 {[%clk 0:01:58.8]} 17... Ne4 {[%clk 0:01:51.5]} 18. Nxe4 {[%clk 0:01:55]}
18... dxe4 {[%clk 0:01:51.6]} 19. b3 {[%clk 0:01:51.3]} 19... Bd5 {[%clk
0:01:30.1]} 20. bxc4 {[%clk 0:01:37.6]} 20... bxc4 {[%clk 0:01:30.6]} 21. Ba2
{[%clk 0:01:35.2]} 21... Nb6 {[%clk 0:01:29.1]} 22. f5 {[%clk 0:01:23]} 22... g5
{[%clk 0:01:01.7]} 23. f6 {[%clk 0:01:22.2]} 23... Bh8 {[%clk 0:00:53]} 24. Qh5
{[%clk 0:01:17.6]} 24... gxh4 {[%clk 0:00:44.1]} 25. Rf4 {[%clk 0:01:08.7]}
25... Be6 {[%clk 0:00:41.4]} 26. Qxh6 {[%clk 0:00:49.1]} 26... Bxf6 {[%clk
0:00:23.9]} 27. Rxf6 {[%clk 0:00:42.8]} 1-0

[Event "*** Titled Tuesday Blitz"]
[Site "Chess.com"]
[Date "2020.05.12"]
[Round "6"]
[White "wild_cat99"]
[Black "PhileKhoob"]
[Result "1-0"]
[WhiteElo "2601"]
[BlackElo "2450"]
[TimeControl "180+1"]
[EndTime "11:05:07 PDT"]
[Termination "wild_cat99 won by resignation"]

1. Nf3 {[%clk 0:03:00.9]} 1... Nf6 {[%clk 0:02:59.1]} 2. c4 {[%clk 0:03:00.3]}
2... g6 {[%clk 0:02:59.1]} 3. Nc3 {[%clk 0:02:59.9]} 3... d5 {[%clk 0:02:59.7]}
4. cxd5 {[%clk 0:02:50.8]} 4... Nxd5 {[%clk 0:03:00.6]} 5. e4 {[%clk 0:02:51.2]}
5... Nxc3 {[%clk 0:02:59.6]} 6. bxc3 {[%clk 0:02:52.1]} 6... Bg7 {[%clk
0:02:58.9]} 7. d4 {[%clk 0:02:52.6]} 7... O-O {[%clk 0:02:59.8]} 8. Be3 {[%clk
0:02:52.4]} 8... c5 {[%clk 0:03:00.7]} 9. Qd2 {[%clk 0:02:45.4]} 9... Qa5 {[%clk
0:02:55.4]} 10. Be2 {[%clk 0:02:41.1]} 10... Nc6 {[%clk 0:02:53]} 11. O-O {[%clk
0:02:40.5]} 11... cxd4 {[%clk 0:02:50.9]} 12. Nxd4 {[%clk 0:02:24.5]} 12... Rd8
{[%clk 0:02:09.3]} 13. Qb2 {[%clk 0:02:21.1]} 13... Nxd4 {[%clk 0:01:54.9]} 14.
cxd4 {[%clk 0:02:22]} 14... b6 {[%clk 0:01:33.8]} 15. Rfc1 {[%clk 0:02:18.5]}
15... Bb7 {[%clk 0:01:21.6]} 16. e5 {[%clk 0:02:17.1]} 16... Rac8 {[%clk
0:01:18.4]} 17. a4 {[%clk 0:02:15.5]} 17... Qd5 {[%clk 0:01:02]} 18. Bf3 {[%clk
0:02:15.3]} 18... Qd7 {[%clk 0:01:02.1]} 19. Bxb7 {[%clk 0:02:06.5]} 19... Qxb7
{[%clk 0:01:03]} 20. a5 {[%clk 0:02:04.9]} 20... b5 {[%clk 0:01:01.9]} 21. a6
{[%clk 0:02:01.6]} 21... Qb8 {[%clk 0:00:47.8]} 22. Rxc8 {[%clk 0:02:00]} 22...
Rxc8 {[%clk 0:00:48.7]} 23. Rc1 {[%clk 0:01:57.1]} 23... Rxc1+ {[%clk
0:00:43.6]} 24. Qxc1 {[%clk 0:01:58]} 24... e6 {[%clk 0:00:43.2]} 25. Qc6 {[%clk
0:01:58.1]} 25... Bf8 {[%clk 0:00:39.3]} 26. Qb7 {[%clk 0:01:58.2]} 26... Qd8
{[%clk 0:00:33.6]} 27. Qxa7 {[%clk 0:01:55.7]} 27... Qa5 {[%clk 0:00:30]} 28. g3
{[%clk 0:01:52.8]} 28... b4 {[%clk 0:00:20.7]} 29. Qb7 {[%clk 0:01:52.3]} 29...
b3 {[%clk 0:00:21.1]} 30. Bh6 {[%clk 0:01:37.2]} 30... Bxh6 {[%clk 0:00:16.3]}
31. a7 {[%clk 0:01:36.9]} 31... Qe1+ {[%clk 0:00:09.2]} 32. Kg2 {[%clk
0:01:36.6]} 32... b2 {[%clk 0:00:09.1]} 33. a8=Q+ {[%clk 0:01:35.2]} 33... Bf8
{[%clk 0:00:09.4]} 34. Qbb8 {[%clk 0:01:19.6]} 1-0

[Event "*** Titled Tuesday Blitz"]
[Site "Chess.com"]
[Date "2020.05.12"]
[Round "6"]
[White "eightbyeightchess"]
[Black "HanSchut"]
[Result "0-1"]
[WhiteElo "2383"]
[BlackElo "2228"]
[TimeControl "180+1"]
[EndTime "11:05:07 PDT"]
[Termination "HanSchut won by resignation"]

1. e4 {[%clk 0:03:00.9]} 1... c5 {[%clk 0:02:59.4]} 2. Nf3 {[%clk 0:03:00.7]}
2... d6 {[%clk 0:02:59.8]} 3. d4 {[%clk 0:03:00.9]} 3... cxd4 {[%clk 0:03:00.7]}
4. Qxd4 {[%clk 0:03:01.1]} 4... Nc6 {[%clk 0:02:59.2]} 5. Bb5 {[%clk 0:03:00.5]}
5... Bd7 {[%clk 0:02:59.7]} 6. Bxc6 {[%clk 0:03:00.5]} 6... Bxc6 {[%clk
0:03:00.3]} 7. Nc3 {[%clk 0:03:01.1]} 7... Nf6 {[%clk 0:02:57.4]} 8. Bg5 {[%clk
0:03:00.9]} 8... e5 {[%clk 0:02:56.5]} 9. Qd3 {[%clk 0:03:00.2]} 9... Be7 {[%clk
0:02:54.1]} 10. O-O-O {[%clk 0:03:00.3]} 10... Qa5 {[%clk 0:02:19.8]} 11. Bxf6
{[%clk 0:02:44.4]} 11... Bxf6 {[%clk 0:02:04.1]} 12. Nd2 {[%clk 0:02:39.3]}
12... O-O {[%clk 0:01:46.8]} 13. Nc4 {[%clk 0:02:35]} 13... Qc5 {[%clk
0:01:39.5]} 14. Ne3 {[%clk 0:02:23.9]} 14... Bg5 {[%clk 0:01:30.9]} 15. Rhe1
{[%clk 0:02:19]} 15... Rfd8 {[%clk 0:01:24.8]} 16. Kb1 {[%clk 0:02:18.9]} 16...
Bxe3 {[%clk 0:01:24.4]} 17. Rxe3 {[%clk 0:02:19.8]} 17... b5 {[%clk 0:01:18.6]}
18. Nd5 {[%clk 0:02:12.9]} 18... Kf8 {[%clk 0:01:01.4]} 19. Qe2 {[%clk
0:01:48.4]} 19... Bxd5 {[%clk 0:00:44]} 20. Rxd5 {[%clk 0:01:49.3]} 20... Qb6
{[%clk 0:00:39.6]} 21. Qxb5 {[%clk 0:01:36.3]} 21... Qc7 {[%clk 0:00:33.5]} 22.
Rc3 {[%clk 0:01:32.7]} 22... Qxc3 {[%clk 0:00:27.1]} 23. bxc3 {[%clk 0:01:28.3]}
23... Rab8 {[%clk 0:00:27.6]} 24. c4 {[%clk 0:01:28.6]} 24... a6 {[%clk
0:00:27]} 25. a4 {[%clk 0:01:25.7]} 25... axb5 {[%clk 0:00:26.4]} 26. axb5
{[%clk 0:01:18.8]} 26... Ke7 {[%clk 0:00:26.2]} 27. Kb2 {[%clk 0:01:18.6]} 27...
Rdc8 {[%clk 0:00:26.8]} 28. Kb3 {[%clk 0:01:18.9]} 28... Rc5 {[%clk 0:00:27]}
29. Rd3 {[%clk 0:01:17.4]} 29... Rbc8 {[%clk 0:00:27.2]} 30. Rc3 {[%clk
0:01:18]} 30... f5 {[%clk 0:00:27.6]} 31. f3 {[%clk 0:01:17.5]} 31... fxe4
{[%clk 0:00:27.7]} 32. fxe4 {[%clk 0:01:18.4]} 32... Rf8 {[%clk 0:00:27.7]} 33.
Kb4 {[%clk 0:01:17.7]} 33... Kd7 {[%clk 0:00:26.3]} 34. Rg3 {[%clk 0:01:17]}
34... g6 {[%clk 0:00:26.2]} 35. Rh3 {[%clk 0:01:17.2]} 35... Rf7 {[%clk
0:00:24.6]} 36. g4 {[%clk 0:01:15]} 36... Ke6 {[%clk 0:00:24.2]} 37. g5 {[%clk
0:01:15.2]} 37... Rfc7 {[%clk 0:00:24.1]} 38. b6 {[%clk 0:01:11.6]} 38... Rb7
{[%clk 0:00:23.6]} 39. Rf3 {[%clk 0:01:10.9]} 39... Rxb6+ {[%clk 0:00:23.7]} 40.
Kc3 {[%clk 0:01:11.8]} 40... Rbc6 {[%clk 0:00:22.1]} 41. Rf6+ {[%clk 0:01:12]}
41... Ke7 {[%clk 0:00:22.6]} 0-1

[Event "*** Titled Tuesday Blitz"]
[Site "Chess.com"]
[Date "2020.05.12"]
[Round "6"]
[White "GOGIEFF"]
[Black "abykhovsky"]
[Result "1-0"]
[WhiteElo "2948"]
[BlackElo "2680"]
[TimeControl "180+1"]
[EndTime "11:05:08 PDT"]
[Termination "GOGIEFF won by resignation"]

1. d4 {[%clk 0:03:00.9]} 1... Nf6 {[%clk 0:02:59]} 2. c4 {[%clk 0:03:01.4]} 2...
g6 {[%clk 0:02:59]} 3. Nc3 {[%clk 0:03:01.9]} 3... d5 {[%clk 0:02:59.4]} 4. Nf3
{[%clk 0:02:59.9]} 4... Bg7 {[%clk 0:02:59.5]} 5. cxd5 {[%clk 0:03:00.4]} 5...
Nxd5 {[%clk 0:02:59.3]} 6. Bd2 {[%clk 0:03:01]} 6... c5 {[%clk 0:02:57.7]} 7.
Nxd5 {[%clk 0:02:59.9]} 7... Qxd5 {[%clk 0:02:57.8]} 8. Rc1 {[%clk 0:03:00.5]}
8... Nc6 {[%clk 0:02:57.7]} 9. Rxc5 {[%clk 0:02:58.5]} 9... Qxa2 {[%clk
0:02:57.8]} 10. e3 {[%clk 0:02:58.9]} 10... O-O {[%clk 0:02:56.8]} 11. Bc4
{[%clk 0:02:55.2]} 11... Qxb2 {[%clk 0:02:54]} 12. O-O {[%clk 0:02:55.1]} 12...
Bd7 {[%clk 0:02:31]} 13. Rb5 {[%clk 0:02:46.7]} 13... Qa3 {[%clk 0:02:28.5]} 14.
Rxb7 {[%clk 0:02:43.7]} 14... Rfd8 {[%clk 0:02:27.8]} 15. Ng5 {[%clk 0:02:40.5]}
15... e6 {[%clk 0:02:21.7]} 16. Nxf7 {[%clk 0:02:12.6]} 16... Kxf7 {[%clk
0:02:07.8]} 17. Rxd7+ {[%clk 0:02:11.8]} 17... Rxd7 {[%clk 0:02:06.1]} 18. Qf3+
{[%clk 0:02:12.3]} 18... Ke7 {[%clk 0:00:35.1]} 19. Qxc6 {[%clk 0:02:09.8]}
19... Rf8 {[%clk 0:00:32.7]} 20. Qxe6+ {[%clk 0:02:04.5]} 20... Kd8 {[%clk
0:00:33]} 21. Bb5 {[%clk 0:01:57.7]} 21... Rc7 {[%clk 0:00:27.5]} 22. Qd5+
{[%clk 0:01:42.3]} 22... Ke7 {[%clk 0:00:26.5]} 23. Qe4+ {[%clk 0:01:39.6]}
23... Kd8 {[%clk 0:00:26.5]} 24. g4 {[%clk 0:01:32.4]} 24... h5 {[%clk
0:00:20.1]} 25. Qd5+ {[%clk 0:01:27.8]} 25... Ke7 {[%clk 0:00:19.8]} 26. Rb1
{[%clk 0:01:27.3]} 26... a5 {[%clk 0:00:18.6]} 27. Bc4 {[%clk 0:01:21.6]} 27...
Qd6 {[%clk 0:00:16.8]} 28. Qe4+ {[%clk 0:01:17.2]} 28... Kf6 {[%clk 0:00:17.3]}
29. Bd3 {[%clk 0:01:03.1]} 29... Kg5 {[%clk 0:00:17.6]} 30. Rb5+ {[%clk
0:00:51.4]} 1-0